bitfinex/quotes_SOLUSD_20240729
["timestamp","ask_amount","ask_price","bid_price","bid_amount"]
[1722225599869,24.34582892,192.75,192.71,12.95]
[1722225600185,14.98204857,192.74,192.71,12.95]
[1722225600386,14.98204857,192.77,192.72,12.95]
[1722225600584,9.36373091,192.76,192.72,12.95]
[1722225600783,24.34577948,192.75,192.72,12.95]
[1722225600986,24.34577948,192.74,192.73,12.95]
[1722225601194,14.98228857,192.74,192.72,12.95]
[1722225601383,9.36393035,192.74,192.72,12.95]
[1722225601792,34.9281,192.81,192.73,12.95]
[1722225601979,39.06803014,192.8,192.74,12.95]
[1722225602175,48.43191548,192.8,192.75,12.95]
[1722225602376,24.34610189,192.79,192.76,12.95]
[1722225602573,24.34610189,192.78,192.77,12.95]
[1722225602774,9.36388534,192.78,192.77,12.95]
[1722225603472,9.36388534,192.78,192.76,12.95]
[1722225603684,4.1489,192.82,192.76,12.95]
[1722225603881,14.97964591,192.83,192.78,12.95]
[1722225604402,9.3622787,192.81,192.71,16.89321012]
[1722225604700,9.3622787,192.82,192.72,45.17]
[1722225605003,15.8425,192.89,192.73,23.57072607]
[1722225605004,4.1474,192.89,192.73,23.57072607]
[1722225605200,9.35906802,192.88,192.84,12.95]
[1722225605399,24.33357686,192.87,192.86,12.95]
[1722225605576,6.5574,192.91,192.86,12.95]
[1722225605896,6.5574,192.91,192.88,12.95]
[1722225605897,9.35786133,192.9,192.88,12.95]
[1722225606192,6.0894,192.96,192.88,12.95]
[1722225606404,24.32769711,192.95,192.89,12.95]
[1722225606605,28.47409711,192.94,192.89,12.95]
[1722225606802,4.1466,192.93,192.89,12.95]
[1722225607013,13.50297442,192.93,192.89,12.95]
[1722225607385,24.32929269,192.92,192.88,12.95]
[1722225607597,24.32929269,192.91,192.81,15.9931]
[1722225607799,9.35637442,192.9,192.87,12.95]
[1722225608186,4.1463,192.94,192.87,12.95]
[1722225608394,9.35798569,192.93,192.88,12.95]
[1722225608592,9.35798569,192.92,192.88,12.95]
[1722225608904,0.17,192.93,192.88,12.95]
[1722225609202,9.35708593,192.92,192.88,12.95]
[1722225609401,24.3163,192.94,192.88,12.95]
[1722225609608,9.35704239,192.93,192.88,12.95]
[1722225609789,4.3163,192.94,192.88,12.95]
[1722225610188,9.35690439,192.93,192.91,12.95]
[1722225610604,6.0894,192.96,192.92,12.95]
[1722225611412,0.8002087,192.97,192.92,12.95]
[1722225611614,0.8002087,192.97,192.89,16.0613]
[1722225611788,0.8002087,192.97,192.93,12.95]
[1722225612113,0.8002087,192.97,192.95,12.95]
[1722225612512,0.8002087,192.97,192.9,51.8]
[1722225612703,0.8002087,192.97,192.95,12.95]
[1722225613219,0.8002087,192.97,192.96,12.95]
[1722225618817,0.8002087,192.97,192.9,51.8]
[1722225619018,0.8002087,192.97,192.96,12.95]
[1722225619616,0.8002087,192.97,192.9,51.8]
[1722225619798,0.8002087,192.97,192.95,12.95]
[1722225619997,0.8002087,192.97,192.89,16.0613]
[1722225620212,0.8002087,192.97,192.93,12.95]
[1722225620890,0.8002087,192.97,192.91,12.95]
[1722225621289,12.95,192.96,192.85,16.3991]
[1722225621494,0.8002087,192.97,192.89,12.95]
[1722225621495,17.0961,192.95,192.89,12.95]
[1722225621918,18.0660087,192.97,192.9,12.95]
[1722225622192,0.8002087,192.97,192.94,12.95]
[1722225622395,0.8002087,192.97,192.95,12.95]
[1722225622690,0.8002087,192.97,192.94,12.95]
[1722225623507,0.8002087,192.97,192.85,16.3991]
[1722225623703,0.8002087,192.97,192.92,12.95]
[1722225623907,0.8002087,192.97,192.93,12.95]
[1722225624113,0.8002087,192.97,192.94,12.95]
[1722225624312,0.8002087,192.97,192.86,45.0]
[1722225624497,0.8002087,192.97,192.9,51.8]
[1722225624794,0.8002087,192.97,192.95,12.95]
[1722225625396,0.8002087,192.97,192.96,12.95]
[1722225626013,0.8002087,192.97,192.95,12.95]
[1722225626317,0.8002087,192.97,192.96,12.95]
[1722225627203,0.8002087,192.97,192.87,6.6599]
[1722225627204,4.9459087,192.97,192.87,6.6599]
[1722225627401,0.8002087,192.97,192.95,12.95]
[1722225627620,0.8002087,192.97,192.96,12.95]
[1722225635718,0.8002087,192.97,192.87,6.6599]
[1722225635909,4.9460087,192.97,192.87,6.6599]
[1722225636224,4.9460087,192.97,192.92,12.95]
[1722225636409,4.9460087,192.97,192.93,12.95]
[1722225637727,0.8002087,192.97,192.93,12.95]
[1722225638317,4.146,192.96,192.92,12.95]
[1722225638521,0.8002087,192.97,192.85,16.3991]
[1722225638740,4.1467,192.93,192.85,16.3991]
[1722225639037,4.1467,192.93,192.89,12.95]
[1722225639839,4.1474,192.89,192.8,15.1565]
[1722225640028,33.29,192.92,192.85,12.95]
[1722225640334,4.1472,192.9,192.85,12.95]
[1722225640711,37.4369,192.92,192.85,12.95]
[1722225641041,24.4869,192.92,192.86,12.95]
[1722225641237,20.34,192.92,192.86,12.95]
[1722225641418,33.29,192.92,192.85,12.95]
[1722225641626,4.1481,192.86,192.75,15.9545]
[1722225641826,4.1483,192.85,192.81,12.95]
[1722225642710,4.1485,192.84,192.75,15.9545]
[1722225642917,4.1485,192.84,192.8,12.95]
[1722225643321,10.4994,192.85,192.81,12.95]
[1722225643730,4.1485,192.84,192.75,15.9545]
[1722225643949,4.1485,192.84,192.81,12.95]
[1722225644147,6.3511,192.85,192.81,12.95]
[1722225645429,6.3511,192.85,192.82,12.95]
[1722225647352,6.3511,192.85,192.83,12.95]
[1722225647653,6.3511,192.85,192.84,12.95]
[1722225647833,4.1474,192.89,192.84,12.95]
[1722225648150,4.3176,192.88,192.85,12.95]
[1722225648359,4.3176,192.88,192.84,12.95]
[1722225648659,4.1474,192.89,192.85,12.95]
[1722225648842,4.1483,192.85,192.75,15.9545]
[1722225649046,4.1483,192.85,192.81,12.95]
[1722225649356,4.148,192.86,192.81,12.95]
[1722225649553,4.148,192.86,192.82,12.95]
[1722225651067,4.1487,192.84,192.75,15.9545]
[1722225651360,4.1487,192.84,192.78,12.95]
[1722225651560,4.1487,192.84,192.79,12.95]
[1722225652060,4.3188,192.83,192.78,12.95]
[1722225652239,4.1488,192.83,192.78,12.95]
[1722225652437,4.149,192.82,192.76,12.95]
[1722225652746,4.1491,192.81,192.76,12.95]
[1722225652946,13.12,192.83,192.71,5.2]
[1722225652947,12.95,192.82,192.71,5.2]
[1722225653147,4.1496,192.79,192.71,5.2]
[1722225653466,4.3195,192.8,192.74,12.95]
[1722225653833,0.17,192.8,192.75,12.95]
[1722225654652,4.3193,192.8,192.75,12.95]
[1722225654956,0.17,192.79,192.73,12.95]
[1722225655146,4.1498,192.78,192.73,12.95]
[1722225656257,4.1498,192.78,192.67,5.2]
[1722225656462,4.1498,192.78,192.73,12.95]
[1722225656837,10.8387,192.77,192.67,5.2]
[1722225657037,11.0087,192.77,192.71,18.15]
[1722225657441,4.1502,192.76,192.71,18.15]
[1722225658363,4.3204,192.75,192.71,5.2]
[1722225658552,4.4904,192.75,192.71,5.2]
[1722225658744,6.5187,192.77,192.71,18.15]
[1722225658943,20.34,192.76,192.71,18.15]
[1722225659556,20.17,192.76,192.72,12.95]
[1722225659766,0.17,192.76,192.71,5.2]
[1722225659947,45.34,192.76,192.71,5.2]
[1722225660355,0.34,192.76,192.71,18.15]
[1722225660557,0.34,192.76,192.73,12.95]
[1722225660743,0.17,192.76,192.73,12.95]
[1722225661561,6.5187,192.77,192.73,12.95]
[1722225661955,10.6687,192.77,192.73,12.95]
[1722225662356,6.5187,192.77,192.74,12.95]
[1722225662951,4.1493,192.81,192.76,12.95]
[1722225663154,4.1493,192.81,192.79,12.95]
[1722225663370,22.1978,192.82,192.79,12.95]
[1722225663545,4.1491,192.81,192.79,12.95]
[1722225663750,4.1495,192.79,192.78,12.95]
[1722225663962,50.7578,192.82,192.71,5.2]
[1722225664147,12.95,192.8,192.73,12.95]
[1722225664573,4.1502,192.76,192.73,12.95]
[1722225664758,24.1497,192.79,192.74,12.95]
[1722225664954,0.17,192.78,192.75,12.95]
[1722225665161,4.1497,192.79,192.75,12.95]
[1722225667148,4.1497,192.79,192.76,12.95]
[1722225668257,4.1498,192.78,192.76,12.95]
[1722225668566,4.15,192.77,192.75,12.95]
[1722225669072,4.1504,192.75,192.7,5.2]
[1722225669376,4.1499,192.78,192.74,12.95]
[1722225669757,4.1501,192.77,192.7,5.2]
[1722225669957,4.1502,192.76,192.74,12.95]
[1722225670153,4.32,192.78,192.74,12.95]
[1722225670473,4.1504,192.75,192.71,5.2]
[1722225670774,4.1507,192.74,192.71,5.2]
[1722225671695,4.1507,192.74,192.7,5.2]
[1722225672969,4.1507,192.74,192.71,5.2]
[1722225672970,6.4465,192.74,192.71,5.2]
[1722225673179,0.17,192.73,192.71,5.2]
[1722225673382,4.1511,192.72,192.71,5.2]
[1722225673685,4.4911,192.72,192.71,5.2]
[1722225674186,4.4911,192.72,192.67,5.2]
[1722225674373,4.4911,192.72,192.6,67.9501]
[1722225674374,0.17,192.72,192.69,5.2]
[1722225674571,4.3212,192.72,192.69,5.2]
[1722225674765,4.1513,192.71,192.69,5.2]
[1722225674967,0.17,192.7,192.69,5.2]
[1722225675386,0.17,192.7,192.67,5.2]
[1722225676056,0.17,192.7,192.67,18.15]
[1722225676462,0.17,192.7,192.69,5.2]
[1722225677387,24.151,192.73,192.69,5.2]
[1722225677567,0.34,192.72,192.69,5.2]
[1722225677771,4.4911,192.72,192.69,5.2]
[1722225678458,4.1513,192.71,192.69,5.2]
[1722225678658,0.17,192.7,192.68,5.2]
[1722225679189,4.3216,192.7,192.68,5.2]
[1722225679403,4.3216,192.7,192.65,12.95]
[1722225679404,4.1519,192.69,192.65,12.95]
[1722225679564,4.1519,192.69,192.66,12.95]
[1722225679764,4.3215,192.7,192.66,12.95]
[1722225680094,0.17,192.7,192.66,12.95]
[1722225680263,0.34,192.7,192.66,12.95]
[1722225680593,0.17,192.7,192.67,12.95]
[1722225681395,0.17,192.7,192.68,12.95]
[1722225683876,4.3215,192.7,192.67,12.95]
[1722225685204,4.3215,192.7,192.61,5.2]
[1722225685395,4.3215,192.7,192.67,12.95]
[1722225686694,4.3215,192.7,192.68,12.95]
[1722225687409,4.3215,192.7,192.67,12.95]
[1722225687798,0.17,192.72,192.69,12.95]
[1722225688105,10.5971,192.74,192.71,12.95]
[1722225688306,6.4465,192.74,192.72,12.95]
[1722225688503,6.4465,192.74,192.61,6.23788897]
[1722225688504,6.4465,192.74,192.61,5.2]
[1722225688712,6.4465,192.74,192.6,67.9501]
[1722225688713,10.5971,192.74,192.71,12.95]
[1722225689016,6.4465,192.74,192.71,12.95]
[1722225689194,10.5972,192.74,192.71,12.95]
[1722225689390,6.4465,192.74,192.71,12.95]
[1722225689585,4.1511,192.72,192.71,12.95]
[1722225689797,10.5971,192.74,192.71,12.95]
[1722225690000,6.4465,192.74,192.71,12.95]
[1722225693597,10.5971,192.74,192.7,12.95]
[1722225694213,4.3204,192.75,192.7,12.95]
[1722225694421,0.17,192.74,192.7,12.95]
[1722225694596,0.17,192.74,192.71,12.95]
[1722225694995,4.3204,192.75,192.71,12.95]
[1722225696218,4.3204,192.75,192.7,12.95]
[1722225697124,0.17,192.75,192.7,12.95]
[1722225697836,0.17,192.75,192.63,5.2]
[1722225697837,4.1509,192.73,192.69,12.95]
[1722225698123,4.3206,192.75,192.7,12.95]
[1722225698315,0.17,192.75,192.71,12.95]
[1722225698527,4.3205,192.75,192.71,12.95]
[1722225698713,0.17,192.75,192.7,12.95]
[1722225698899,0.34,192.76,192.7,12.95]
[1722225699299,9.36555379,192.75,192.7,12.95]
[1722225699597,0.34,192.76,192.7,12.95]
[1722225699799,9.36552749,192.75,192.7,12.95]
[1722225700098,0.34,192.76,192.7,12.95]
[1722225700299,13.51595584,192.75,192.71,12.95]
[1722225700522,0.34,192.76,192.62,45.0]
[1722225700523,0.17,192.76,192.74,12.95]
[1722225700835,4.15,192.78,192.75,12.95]
[1722225701005,9.36425007,192.77,192.75,12.95]
[1722225701199,4.15,192.78,192.75,12.95]
[1722225701405,4.15,192.78,192.76,12.95]
[1722225701607,4.15,192.78,192.75,12.95]
[1722225702231,10.7834,192.79,192.75,12.95]
[1722225702415,4.1498,192.78,192.75,12.95]
[1722225703920,6.6338,192.79,192.75,12.95]
[1722225704131,10.7834,192.79,192.75,12.95]
[1722225704443,0.17,192.8,192.77,12.95]
[1722225704614,6.4337,192.83,192.79,12.95]
[1722225704816,9.36213877,192.82,192.8,12.95]
[1722225705030,6.4337,192.83,192.78,12.95]
[1722225705244,4.1489,192.82,192.78,12.95]
[1722225706041,10.5824,192.83,192.78,12.95]
[1722225706225,10.5824,192.83,192.79,12.95]
[1722225706546,4.1484,192.85,192.82,12.95]
[1722225706840,6.6352,192.88,192.82,12.95]
[1722225707011,4.148,192.87,192.82,12.95]
[1722225707205,6.6352,192.88,192.84,12.95]
[1722225707406,15.5598,192.94,192.85,12.95]
[1722225707407,12.95,192.92,192.85,12.95]
[1722225707716,4.1471,192.91,192.87,12.95]
[1722225708218,4.1471,192.91,192.86,12.95]
[1722225708533,4.1469,192.92,192.86,12.95]
[1722225708731,4.147,192.91,192.86,12.95]
[1722225708936,12.95,192.92,192.85,12.95]
[1722225709229,12.95,192.91,192.84,12.95]
[1722225709808,12.95,192.89,192.78,15.821]
[1722225710043,4.1478,192.87,192.81,12.95]
[1722225710330,12.95,192.88,192.81,12.95]
[1722225710530,13.29,192.89,192.82,12.95]
[1722225710720,4.1476,192.88,192.84,12.95]
[1722225711033,0.17,192.89,192.84,12.95]
[1722225711328,45.34,192.89,192.78,15.821]
[1722225711710,4.1479,192.87,192.78,15.821]
[1722225711914,0.17,192.86,192.78,15.821]
[1722225713029,4.3182,192.86,192.78,15.821]
[1722225714235,4.1483,192.85,192.78,15.821]
[1722225714445,0.17,192.84,192.78,15.821]
[1722225715016,0.34,192.85,192.78,15.821]
[1722225715323,0.17,192.85,192.78,15.821]
[1722225715521,6.1445,192.86,192.78,15.821]
[1722225721226,6.1445,192.86,192.73,15.5597]
[1722225721425,0.17,192.85,192.73,15.5597]
[1722225721619,25.5736,192.86,192.75,25.88]
[1722225721819,21.4254,192.86,192.75,25.88]
[1722225722024,6.1445,192.86,192.75,25.88]
[1722225722743,6.1445,192.86,192.76,45.0]
[1722225723329,10.2926,192.86,192.76,45.0]
[1722225723646,6.1445,192.86,192.75,25.88]
[1722225723937,0.34,192.85,192.75,25.88]
[1722225724141,4.4883,192.85,192.75,25.88]
[1722225726528,0.34,192.85,192.75,25.88]
[1722225727338,4.4883,192.85,192.75,25.88]
[1722225732130,0.34,192.85,192.75,25.88]
[1722225733141,0.34,192.85,192.82,12.94]
[1722225733343,0.34,192.85,192.81,12.94]
[1722225733640,0.17,192.85,192.82,12.94]
[1722225733827,6.1445,192.86,192.82,12.94]
[1722225734643,6.1445,192.86,192.85,12.94]
[1722225734849,21.5963,192.91,192.85,12.94]
[1722225735036,6.3154,192.91,192.89,12.94]
[1722225735234,6.3154,192.91,192.8,68.2684]
[1722225735235,6.3154,192.91,192.9,12.94]
[1722225735939,4.1463,192.94,192.9,12.94]
[1722225736444,4.1463,192.94,192.91,12.94]
[1722225736654,10.4615,192.95,192.91,12.94]
[1722225737263,10.4615,192.95,192.9,12.94]
[1722225737444,19.2554,192.95,192.8,68.2684]
[1722225737761,12.94,192.93,192.86,12.94]
[1722225737938,13.28,192.92,192.85,12.94]
[1722225738446,13.28,192.92,192.86,12.94]
[1722225738644,13.28,192.92,192.85,12.94]
[1722225738842,17.4269,192.92,192.85,12.94]
[1722225739064,4.147,192.91,192.85,12.94]
[1722225739351,0.17,192.9,192.85,12.94]
[1722225739555,4.3174,192.9,192.85,12.94]
[1722225739767,13.11,192.9,192.76,15.8382]
[1722225739939,13.11,192.9,192.83,12.94]
[1722225740342,17.2572,192.9,192.84,12.94]
[1722225740557,13.11,192.9,192.84,12.94]
[1722225740737,0.17,192.9,192.86,12.94]
[1722225741036,0.17,192.91,192.86,12.94]
[1722225741238,0.17,192.91,192.8,51.76]
[1722225741434,12.94,192.91,192.84,12.94]
[1722225741647,12.94,192.91,192.85,12.94]
[1722225741944,0.17,192.9,192.85,12.94]
[1722225742468,4.3172,192.9,192.85,12.94]
[1722225742759,4.3172,192.9,192.8,51.76]
[1722225743646,6.4323,192.88,192.77,45.0]
[1722225743843,6.4323,192.88,192.82,12.94]
[1722225744247,4.1479,192.87,192.82,12.94]
[1722225746073,10.7499,192.88,192.82,12.94]
[1722225746374,0.17,192.87,192.82,12.94]
[1722225746566,0.17,192.87,192.83,12.94]
[1722225748874,0.17,192.87,192.82,12.94]
[1722225749382,0.17,192.87,192.83,12.94]
[1722225749552,0.17,192.87,192.85,12.94]
[1722225749870,6.4323,192.88,192.85,12.94]
[1722225750468,4.1478,192.87,192.83,12.94]
[1722225750848,4.1478,192.87,192.76,15.8382]
[1722225750849,6.4323,192.88,192.84,12.94]
[1722225751853,6.4323,192.88,192.85,12.94]
[1722225752049,6.4323,192.88,192.86,12.94]
[1722225752473,6.4323,192.88,192.87,12.94]
[1722225752666,6.4323,192.88,192.86,12.94]
[1722225753254,6.4323,192.88,192.85,12.94]
[1722225753966,6.4323,192.88,192.86,12.94]
[1722225754751,4.1466,192.93,192.87,12.94]
[1722225754973,24.1466,192.93,192.87,12.94]
[1722225755354,37.0866,192.93,192.87,12.94]
[1722225755957,4.4868,192.92,192.86,12.94]
[1722225756165,0.34,192.92,192.86,12.94]
[1722225756472,0.17,192.92,192.86,12.94]
[1722225756781,4.4868,192.92,192.86,12.94]
[1722225757272,17.4268,192.92,192.85,12.94]
[1722225759773,12.94,192.9,192.76,15.8382]
[1722225759961,17.4274,192.89,192.82,12.94]
[1722225760868,13.28,192.89,192.82,12.94]
[1722225761368,13.28,192.89,192.76,15.8382]
[1722225761369,17.0881,192.86,192.76,15.8382]
[1722225761676,0.17,192.85,192.78,12.94]
[1722225761882,0.17,192.85,192.79,12.94]
[1722225762253,13.28,192.85,192.78,12.94]
[1722225762894,13.28,192.85,192.71,15.3827]
[1722225763179,4.1497,192.79,192.73,12.94]
[1722225763365,0.17,192.78,192.72,12.94]
[1722225765369,13.11,192.8,192.74,12.94]
[1722225765576,20.0,192.79,192.75,12.94]
[1722225766491,0.17,192.8,192.74,12.94]
[1722225766669,4.4893,192.8,192.74,12.94]
[1722225766872,24.4893,192.8,192.74,12.94]
[1722225767979,6.303,192.83,192.79,12.94]
[1722225768181,6.303,192.83,192.8,12.94]
[1722225769066,6.303,192.83,192.79,12.94]
[1722225770468,10.4517,192.83,192.79,12.94]
[1722225770671,6.303,192.83,192.79,12.94]
[1722225771193,6.303,192.83,192.78,12.94]
[1722225771491,4.3189,192.82,192.77,12.94]
[1722225772590,0.17,192.82,192.78,12.94]
[1722225773471,4.3189,192.82,192.77,12.94]
[1722225774896,0.17,192.82,192.77,12.94]
[1722225775495,6.303,192.83,192.79,12.94]
[1722225776593,6.303,192.83,192.8,12.94]
[1722225776895,19.9319,192.86,192.82,12.94]
[1722225777194,6.2379,192.87,192.74,1.03729146]
[1722225777195,6.2379,192.87,192.83,12.94]
[1722225777403,6.2379,192.87,192.84,12.94]
[1722225777589,6.2379,192.87,192.83,12.94]
[1722225777793,6.2379,192.87,192.84,12.94]
[1722225777989,6.2379,192.87,192.85,12.94]
[1722225778296,6.2379,192.87,192.84,12.94]
[1722225778503,15.852,192.91,192.85,12.94]
[1722225778676,4.1474,192.89,192.85,12.94]
[1722225778877,4.1477,192.88,192.83,12.94]
[1722225779105,4.1479,192.87,192.83,12.94]
[1722225780302,4.1482,192.86,192.73,16.303]
[1722225780503,12.94,192.88,192.81,12.94]
[1722225780797,20.0,192.89,192.73,17.34020274]
[1722225780798,4.1487,192.84,192.78,12.94]
[1722225781004,17.0887,192.84,192.77,12.94]
[1722225781177,4.1488,192.83,192.77,12.94]
[1722225782799,17.0885,192.84,192.77,12.94]
[1722225783102,0.17,192.83,192.78,12.94]
[1722225783296,0.17,192.83,192.73,16.303]
[1722225783523,20.0,192.85,192.75,25.89]
[1722225783800,20.0,192.85,192.76,45.0]
[1722225784806,20.0,192.85,192.77,45.0]
[1722225785102,6.2581,192.86,192.77,45.0]
[1722225785284,6.2581,192.86,192.78,25.89]
[1722225785483,4.1474,192.9,192.79,45.0]
[1722225785799,4.1472,192.9,192.8,1.03709641]
[1722225786003,4.1472,192.9,192.79,45.0]
[1722225786183,4.1475,192.89,192.79,45.0]
[1722225786584,26.0743,192.91,192.79,45.0]
[1722225786997,4.3172,192.9,192.8,1.03703498]
[1722225787200,0.17,192.9,192.8,1.03703498]
[1722225787387,21.9271,192.91,192.79,46.03701574]
[1722225787584,26.0741,192.91,192.79,46.03701574]
[1722225787790,24.1472,192.9,192.79,46.03701574]
[1722225787997,4.1472,192.9,192.79,46.03701574]
[1722225788313,24.1472,192.9,192.79,45.0]
[1722225788901,20.0,192.9,192.79,45.0]
[1722225789108,0.34,192.89,192.78,25.89]
[1722225789285,4.1478,192.87,192.78,25.89]
[1722225789704,4.1481,192.86,192.78,25.89]
[1722225790010,4.1478,192.87,192.78,25.89]
[1722225792490,4.1476,192.88,192.78,25.89]
[1722225796209,0.34,192.89,192.78,25.89]
[1722225796409,4.4875,192.89,192.78,25.89]
[1722225796911,20.0,192.9,192.79,45.0]
[1722225798189,20.0,192.9,192.8,16.35590109]
[1722225798393,20.0,192.9,192.81,70.89]
[1722225798896,6.0751,192.91,192.82,1.03696528]
[1722225799102,6.0751,192.91,192.81,70.89]
[1722225799402,6.0751,192.91,192.81,25.89]
[1722225800308,10.2221,192.91,192.81,25.89]
[1722225800495,10.2221,192.91,192.81,26.92701446]
[1722225800694,10.2221,192.91,192.81,25.89]
[1722225800898,6.0751,192.91,192.81,26.92701675]
[1722225801092,21.4863,192.96,192.82,45.0]
[1722225801293,10.2035,192.96,192.84,25.89]
[1722225801489,6.0576,192.96,192.85,45.0]
[1722225802385,4.1461,192.95,192.85,45.0]
[1722225802584,24.1461,192.95,192.85,45.0]
[1722225802896,6.0576,192.96,192.85,45.0]
[1722225803295,10.2035,192.96,192.85,45.0]
[1722225804097,4.1459,192.96,192.86,16.0586]
[1722225804305,20.0,192.96,192.87,45.0]
[1722225804800,4.9459087,192.97,192.88,1.03664309]
[1722225804993,0.8002087,192.97,192.87,71.92662693]
[1722225805199,0.8002087,192.97,192.89,1.03662693]
[1722225805396,0.8002087,192.97,192.87,71.92652979]
[1722225805594,0.8002087,192.97,192.87,70.89]
[1722225805794,0.8002087,192.97,192.87,45.0]
[1722225806305,4.9459087,192.97,192.87,45.0]
[1722225806894,0.8002087,192.97,192.88,1.03662211]
[1722225807208,0.8002087,192.97,192.93,12.93]
[1722225808014,4.9459087,192.97,192.91,12.93]
[1722225808394,17.8759087,192.97,192.9,12.93]
[1722225811111,0.8002087,192.97,192.96,12.93]
[1722225811700,0.8002087,192.97,192.96,29.0503]
[1722225812100,1.0,193.0,192.96,74.0503]
[1722225812304,1.0,193.0,192.99,25.86]
[1722225812515,4.1425,193.12,192.99,64.65]
[1722225812704,12.93,193.12,193.05,12.93]
[1722225812907,4.1434,193.08,192.97,6.0715]
[1722225813098,4.1436,193.07,193.03,12.93]
[1722225813307,4.1436,193.07,192.97,31.8915]
[1722225813503,4.1432,193.09,192.98,45.0]
[1722225813704,4.1434,193.08,192.98,45.0]
[1722225814322,4.143,193.1,193.0,25.82]
[1722225814499,4.1426,193.12,193.0,25.82]
[1722225814697,15.61,193.14,192.98,45.0]
[1722225815201,15.61,193.14,192.97,31.8915]
[1722225815507,4.1431,193.09,192.97,31.8915]
[1722225815808,4.1436,193.07,192.97,31.8915]
[1722225816122,4.1436,193.07,192.96,16.1203]
[1722225816123,6.3947,193.06,192.96,16.1203]
[1722225816321,0.34,193.05,192.96,16.1203]
[1722225816613,10.5385,193.06,192.96,16.1203]
[1722225816799,4.1435,193.08,192.97,25.82]
[1722225817001,20.0,193.1,192.97,25.82]
[1722225817194,4.1434,193.08,192.97,25.82]
[1722225817598,4.1434,193.08,192.98,45.0]
[1722225818101,4.1436,193.07,192.98,45.0]
[1722225820416,4.1436,193.07,192.97,25.82]
[1722225822021,4.1436,193.07,192.98,45.0]
[1722225823223,4.144,193.05,192.96,16.1203]
[1722225823421,16.7515,193.11,193.0,25.82]
[1722225823422,6.3947,193.11,193.0,25.82]
[1722225823607,10.5374,193.11,193.01,45.0]
[1722225823805,6.3947,193.11,193.01,45.0]
[1722225824312,6.3947,193.11,193.0,25.82]
[1722225824921,0.17,193.1,193.0,25.82]
[1722225825516,0.8002087,193.17,193.03,25.82]
[1722225825705,4.1418,193.16,193.04,45.0]
[1722225825900,4.142,193.15,193.04,45.0]
[1722225826105,0.8002087,193.17,193.05,1.03561964]
[1722225826300,0.8002087,193.17,193.04,45.0]
[1722225826506,4.1421,193.14,193.04,45.0]
[1722225827024,0.8002087,193.17,193.06,41.0177]
[1722225827326,4.1419,193.15,193.07,46.03555886]